[Event "Kvibergspelen 2022"]
[Site "Kviberg Park Hotel & Conference, Krutvagen 2, Gothenburg, Sweden"]
[Date "2022.09.30"]
[Round "4.1"]
[White "Olsson, William"]
[Black "Hillarp, Tiger"]
[Result "0-1"]
[TimeControl "15 minutes + 5 seconds per move from move one (Round 1 - 4) / 90 minutes + 30 seconds per move from move one (Round 5 - 8)"]
[WhiteTitle "FM"]
[BlackTitle "GM"]
[WhiteFideId "1741721"]
[BlackFideId "1700812"]
[WhiteElo "2288"]
[BlackElo "2511"]

1. c4 {[%clk 00:15:07]} {[%emt 00:00:03]} e5 {[%clk 00:15:09]} {[%emt
00:00:02]} 2. g3 {[%clk 00:15:11]} {[%emt 00:00:02]} h5 {[%clk 00:15:00]}
{[%emt 00:00:13]} 3. h3 {[%clk 00:14:54]} {[%emt 00:00:22]} Bc5 {[%clk
00:15:00]} {[%emt 00:00:05]} 4. Bg2 {[%clk 00:14:56]} {[%emt 00:00:03]} d6
{[%clk 00:15:01]} {[%emt 00:00:03]} 5. Nc3 {[%clk 00:14:59]} {[%emt 00:00:03]}
a6 {[%clk 00:15:01]} {[%emt 00:00:05]} 6. e3 {[%clk 00:14:32]} {[%emt
00:00:32]} Ba7 {[%clk 00:14:55]} {[%emt 00:00:11]} 7. Nge2 {[%clk 00:14:30]}
{[%emt 00:00:07]} Nc6 {[%clk 00:14:26]} {[%emt 00:00:34]} 8. a3 {[%clk
00:14:07]} {[%emt 00:00:28]} h4 {[%clk 00:14:05]} {[%emt 00:00:26]} 9. g4
{[%clk 00:13:36]} {[%emt 00:00:36]} f5 {[%clk 00:14:09]} {[%emt 00:00:01]} 10.
gxf5 {[%clk 00:13:26]} {[%emt 00:00:15]} Bxf5 {[%clk 00:14:12]} {[%emt
00:00:02]} 11. d4 {[%clk 00:13:29]} {[%emt 00:00:01]} Nf6 {[%clk 00:13:30]}
{[%emt 00:00:47]} 12. Qa4 {[%clk 00:12:00]} {[%emt 00:01:34]} Bd7 {[%clk
00:10:52]} {[%emt 00:02:43]} 13. Qd1 {[%clk 00:11:10]} {[%emt 00:00:55]} Bf5
{[%clk 00:09:28]} {[%emt 00:01:29]} 14. b4 {[%clk 00:10:41]} {[%emt 00:00:35]}
Qd7 {[%clk 00:08:33]} {[%emt 00:00:59]} 15. c5 {[%clk 00:09:42]} {[%emt
00:01:04]} exd4 {[%clk 00:08:16]} {[%emt 00:00:22]} 16. exd4 {[%clk 00:09:45]}
{[%emt 00:00:03]} dxc5 {[%clk 00:07:48]} {[%emt 00:00:33]} 17. dxc5 {[%clk
00:09:03]} {[%emt 00:00:46]} Qxd1+ {[%clk 00:07:50]} {[%emt 00:00:04]} 18. Nxd1
{[%emt 00:00:03]} Be4 {[%clk 00:06:56]} {[%emt 00:00:57]} 19. O-O {[%clk
00:08:52]} {[%emt 00:00:20]} Bxg2 {[%clk 00:06:56]} {[%emt 00:00:05]} 20. Kxg2
{[%clk 00:08:55]} {[%emt 00:00:02]} O-O-O {[%clk 00:06:44]} {[%emt 00:00:17]}
21. Ne3 {[%clk 00:08:36]} {[%emt 00:00:24]} Ne5 {[%clk 00:05:58]} {[%emt
00:00:51]} 22. Nf4 {[%clk 00:07:40]} {[%emt 00:01:02]} g5 {[%clk 00:05:52]}
{[%emt 00:00:10]} 23. Ne6 {[%clk 00:07:34]} {[%emt 00:00:10]} Rde8 {[%clk
00:05:32]} {[%emt 00:00:25]} 24. Ng7 {[%clk 00:07:02]} {[%emt 00:00:37]} Reg8
{[%clk 00:05:24]} {[%emt 00:00:13]} 25. Bb2 {[%clk 00:06:54]} {[%emt 00:00:13]}
Ned7 {[%clk 00:04:37]} {[%emt 00:00:53]} 26. Nef5 {[%clk 00:06:55]} {[%emt
00:00:04]} Nd5 {[%clk 00:03:58]} {[%emt 00:00:44]} 27. Rad1 {[%clk 00:06:35]}
{[%emt 00:00:25]} c6 {[%clk 00:03:48]} {[%emt 00:00:15]} 28. Rxd5 {[%clk
00:04:57]} {[%emt 00:01:44]} cxd5 {[%clk 00:03:51]} 29. Ne7+ {[%clk 00:05:00]}
{[%emt 00:00:02]} Kd8 {[%clk 00:03:15]} {[%emt 00:00:42]} 30. Nxg8 {[%clk
00:05:02]} {[%emt 00:00:03]} Rxg8 {[%clk 00:03:19]} 31. Rd1 {[%clk 00:05:05]}
{[%emt 00:00:02]} Ke7 {[%clk 00:03:13]} {[%emt 00:00:10]} 32. Rxd5 {[%clk
00:04:57]} {[%emt 00:00:14]} Bb8 {[%clk 00:03:16]} {[%emt 00:00:02]} 33. Rxg5
{[%clk 00:04:59]} {[%emt 00:00:03]} Kf7 {[%clk 00:03:08]} {[%emt 00:00:13]} 34.
Rg4 {[%clk 00:04:57]} {[%emt 00:00:07]} Be5 {[%clk 00:03:07]} {[%emt 00:00:06]}
35. Nf5 {[%clk 00:03:27]} {[%emt 00:01:35]} Rxg4+ {[%clk 00:03:10]} {[%emt
00:00:04]} 36. hxg4 {[%clk 00:03:31]} Bxb2 {[%clk 00:03:12]} {[%emt 00:00:02]}
37. Nd6+ {[%clk 00:03:35]} Kf6 {[%clk 00:01:28]} {[%emt 00:01:50]} 38. Nxb7
{[%clk 00:03:25]} {[%emt 00:00:14]} Bxa3 {[%clk 00:01:31]} {[%emt 00:00:02]} 39.
c6 {[%clk 00:01:30]} {[%emt 00:02:00]} Nb6 {[%clk 00:01:35]} 40. Nc5 {[%clk
00:01:26]} {[%emt 00:00:09]} Bxb4 {[%clk 00:01:38]} {[%emt 00:00:01]} 41. Nxa6
{[%clk 00:01:30]} {[%emt 00:00:02]} Bd6 {[%clk 00:01:43]} 42. Kh3 {[%clk
00:01:02]} {[%emt 00:00:33]} Kg5 {[%clk 00:01:41]} {[%emt 00:00:06]} 43. c7
{[%clk 00:00:52]} {[%emt 00:00:16]} Nc8 {[%clk 00:01:42]} {[%emt 00:00:03]} 44.
Nb8 {[%clk 00:00:28]} {[%emt 00:00:30]} Bxc7 {[%clk 00:01:43]} {[%emt
00:00:03]} 45. Nc6 {[%clk 00:00:31]} {[%emt 00:00:02]} Nd6 {[%clk 00:00:53]}
{[%emt 00:00:56]} 46. Nd4 {[%clk 00:00:33]} {[%emt 00:00:03]} Bb6 {[%clk
00:00:57]} 47. Nf3+ {[%clk 00:00:19]} {[%emt 00:00:19]} Kf4 {[%clk 00:01:00]}
{[%emt 00:00:01]} 48. Nxh4 {[%clk 00:00:19]} {[%emt 00:00:06]} Bxf2 {[%clk
00:01:03]} {[%emt 00:00:02]} 49. Ng2+ {[%clk 00:00:11]} {[%emt 00:00:12]} Kg5
{[%clk 00:01:04]} {[%emt 00:00:05]} 50. Ne3 {[%clk 00:00:06]} {[%emt 00:00:10]}
Bxe3 {[%clk 00:01:07]} {[%emt 00:00:02]} 51. Kg2 {[%clk 00:00:09]} {[%emt
00:00:02]} Kxg4 {[%clk 00:01:10]} {[%emt 00:00:03]} 52. Kh1 {[%clk 00:00:11]}
{[%emt 00:00:02]} Ne4 {[%clk 00:01:10]} {[%emt 00:00:04]} 53. Kg2 {[%clk
00:00:15]} {[%emt 00:00:02]} Nf2 {[%clk 00:01:09]} {[%emt 00:00:06]} 54. Kf1
{[%clk 00:00:18]} {[%emt 00:00:01]} Kg3 {[%clk 00:01:05]} {[%emt 00:00:10]} 55.
Kg1 {[%clk 00:00:20]} {[%emt 00:00:03]} Bb6 {[%clk 00:00:53]} {[%emt 00:00:16]}
56. Kf1 {[%clk 00:00:20]} {[%emt 00:00:06]} Kh2 {[%clk 00:00:57]} {[%emt
00:00:01]} 57. Ke1 {[%clk 00:00:22]} {[%emt 00:00:03]} Kg2 {[%clk 00:01:00]}
{[%emt 00:00:01]} 58. Ke2 {[%clk 00:00:26]} Ba7 {[%clk 00:00:51]} {[%emt
00:00:15]} 59. Ke1 {[%clk 00:00:29]} {[%emt 00:00:02]} Nh3 {[%clk 00:00:49]}
{[%emt 00:00:07]} 60. Ke2 {[%clk 00:00:32]} {[%emt 00:00:02]} Nf4+ {[%clk
00:00:53]} {[%emt 00:00:02]} 61. Kd2 {[%clk 00:00:34]} {[%emt 00:00:02]} Bd4
{[%clk 00:00:49]} {[%emt 00:00:09]} 62. Kc2 {[%clk 00:00:37]} {[%emt 00:00:01]}
Kf3 {[%clk 00:00:52]} {[%emt 00:00:02]} 63. Kb3 {[%clk 00:00:41]} Ke4 {[%clk
00:00:53]} {[%emt 00:00:05]} 64. Kc4 {[%clk 00:00:45]} {[%emt 00:00:01]} Ne6
{[%clk 00:00:47]} {[%emt 00:00:11]} 65. Kb5 {[%clk 00:00:48]} {[%emt 00:00:02]}
Kd5 {[%clk 00:00:51]} 66. Ka6 {[%clk 00:00:50]} {[%emt 00:00:03]} Kc6 {[%clk
00:00:54]} 67. Ka5 {[%clk 00:00:54]} {[%emt 00:00:02]} Nc7 {[%clk 00:00:35]}
{[%emt 00:00:24]} 68. Kb4 {[%clk 00:00:57]} {[%emt 00:00:02]} Kd5 {[%clk
00:00:39]} {[%emt 00:00:01]} 69. Ka5 {[%clk 00:01:01]} {[%emt 00:00:02]} Kc4
{[%clk 00:00:39]} {[%emt 00:00:05]} 70. Ka4 {[%clk 00:01:05]} Bb6 {[%clk
00:00:43]} 71. Ka3 {[%clk 00:01:09]} {[%emt 00:00:01]} Nd5 {[%clk 00:00:23]}
{[%emt 00:00:24]} 72. Kb2 {[%clk 00:01:13]} {[%emt 00:00:02]} Nb4 {[%clk
00:00:26]} 73. Kc1 {[%clk 00:01:17]} {[%emt 00:00:01]} Kd3 {[%clk 00:00:27]}
{[%emt 00:00:04]} 74. Kb2 {[%clk 00:01:17]} {[%emt 00:00:05]} Kc4 {[%clk
00:00:18]} {[%emt 00:00:14]} 75. Kc1 {[%clk 00:01:12]} {[%emt 00:00:10]} Kd3
{[%clk 00:00:12]} {[%emt 00:00:11]} 76. Kb2 {[%clk 00:01:13]} {[%emt 00:00:04]}
Nc6 {[%clk 00:00:13]} {[%emt 00:00:04]} 77. Kb3 {[%clk 00:01:16]} {[%emt
00:00:02]} Nd4+ {[%clk 00:00:17]} 78. Kb4 {[%clk 00:01:16]} {[%emt 00:00:05]}
Ba7 {[%clk 00:00:20]} {[%emt 00:00:02]} 79. Ka5 {[%clk 00:01:20]} {[%emt
00:00:02]} Bc5 {[%clk 00:00:23]} {[%emt 00:00:02]} 80. Ka6 {[%clk 00:01:23]}
{[%emt 00:00:02]} Kc4 {[%clk 00:00:26]} 81. Kb7 {[%clk 00:01:27]} Kb5 {[%clk
00:00:29]} {[%emt 00:00:02]} 82. Kc7 {[%clk 00:01:28]} {[%emt 00:00:03]} Nc6
{[%clk 00:00:31]} {[%emt 00:00:04]} 83. Kb7 {[%clk 00:01:28]} {[%emt 00:00:05]}
Nd8+ {[%clk 00:00:34]} {[%emt 00:00:02]} 84. Kc7 {[%clk 00:01:32]} {[%emt
00:00:02]} Bb6+ {[%clk 00:00:37]} {[%emt 00:00:03]} 85. Kc8 {[%clk 00:01:32]}
{[%emt 00:00:05]} Kc6 {[%clk 00:00:39]} {[%emt 00:00:02]} 86. Kb8 {[%clk
00:01:35]} {[%emt 00:00:02]} Nb7 {[%clk 00:00:36]} {[%emt 00:00:08]} 87. Ka8
{[%clk 00:01:36]} {[%emt 00:00:04]} Nc5 {[%clk 00:00:35]} {[%emt 00:00:06]} 88.
Kb8 {[%clk 00:01:40]} {[%emt 00:00:02]} Nd7+ {[%clk 00:00:37]} {[%emt
00:00:02]} 89. Ka8 {[%clk 00:01:43]} {[%emt 00:00:02]} Bc7 {[%clk 00:00:37]}
{[%emt 00:00:05]} 90. Ka7 {[%clk 00:01:46]} {[%emt 00:00:02]} Nb6 {[%clk
00:00:41]} 91. Ka6 {[%clk 00:01:50]} {[%emt 00:00:02]} Bb8 {[%clk 00:00:45]} 92.
Ka5 {[%clk 00:01:54]} {[%emt 00:00:02]} Nd5 {[%clk 00:00:47]} {[%emt 00:00:02]}
93. Ka6 {[%clk 00:01:54]} {[%emt 00:00:05]} Nb4+ {[%clk 00:00:46]} {[%emt
00:00:06]} 94. Ka5 {[%clk 00:01:58]} {[%emt 00:00:02]} Kc5 {[%clk 00:00:50]} 95.
Ka4 {[%clk 00:02:02]} {[%emt 00:00:02]} Kc4 {[%clk 00:00:53]} {[%emt 00:00:01]}
96. Ka5 {[%clk 00:02:05]} {[%emt 00:00:02]} Bc7+ {[%clk 00:00:57]} {[%emt
00:00:01]} 97. Ka4 {[%clk 00:02:09]} Nd5 {[%clk 00:01:00]} {[%emt 00:00:02]} 98.
Ka3 {[%clk 00:02:13]} {[%emt 00:00:02]} Nb4 {[%clk 00:01:04]} {[%emt 00:00:02]}
99. Kb2 {[%clk 00:02:16]} {[%emt 00:00:02]} Bf4 {[%clk 00:01:06]} {[%emt
00:00:03]} 100. Ka3 {[%clk 00:02:19]} {[%emt 00:00:02]} Nd3 {[%clk 00:01:09]}
{[%emt 00:00:02]} 101. Ka4 {[%clk 00:02:21]} {[%emt 00:00:04]} Bc7 {[%clk
00:01:13]} 102. Ka3 {[%clk 00:02:25]} {[%emt 00:00:02]} Bd8 {[%clk 00:01:10]}
{[%emt 00:00:08]} 103. Ka4 {[%clk 00:01:58]} {[%emt 00:00:32]} Nb2+ {[%clk
00:01:13]} {[%emt 00:00:02]} 104. Ka3 {[%clk 00:02:01]} {[%emt 00:00:01]} Kc3
{[%clk 00:01:16]} {[%emt 00:00:02]} 105. Ka2 {[%clk 00:02:06]} Kc2 {[%clk
00:01:13]} {[%emt 00:00:07]} 106. Ka1 {[%clk 00:02:07]} {[%emt 00:00:05]} Be7
{[%clk 00:01:16]} 107. Ka2 {[%clk 00:02:11]} {[%emt 00:00:01]} Nd3 {[%clk
00:01:19]} {[%emt 00:00:02]} 108. Ka1 {[%clk 00:02:15]} {[%emt 00:00:01]} Bf8
{[%clk 00:01:20]} {[%emt 00:00:04]} 109. Ka2 {[%clk 00:02:19]} {[%emt
00:00:02]} Nc1+ {[%clk 00:01:23]} 0-1

[Event "Kvibergspelen 2022"]
[Site "Kviberg Park Hotel & Conference, Krutvagen 2, Gothenburg, Sweden"]
[Date "2022.09.30"]
[Round "4.2"]
[White "Abdrlauf, Elham"]
[Black "Rasti, Arvin"]
[Result "1-0"]
[TimeControl "15 minutes + 5 seconds per move from move one (Round 1 - 4) / 90 minutes + 30 seconds per move from move one (Round 5 - 8)"]
[WhiteTitle "IM"]
[WhiteFideId "1533533"]
[BlackFideId "1741160"]
[WhiteElo "2487"]
[BlackElo "2186"]

1. e4 {[%clk 00:15:09]} c6 {[%clk 00:15:08]} {[%emt 00:00:03]} 2. d4 {[%clk
00:15:12]} {[%emt 00:00:01]} d5 {[%clk 00:15:11]} {[%emt 00:00:01]} 3. Nc3
{[%clk 00:15:17]} dxe4 {[%clk 00:15:12]} {[%emt 00:00:05]} 4. Nxe4 {[%clk
00:15:20]} {[%emt 00:00:01]} Nf6 {[%clk 00:15:16]} {[%emt 00:00:02]} 5. Nxf6+
{[%clk 00:15:24]} exf6 {[%clk 00:15:20]} 6. c3 {[%clk 00:15:28]} Bd6 {[%clk
00:15:23]} {[%emt 00:00:02]} 7. Bd3 {[%clk 00:15:32]} O-O {[%clk 00:15:27]}
{[%emt 00:00:02]} 8. Ne2 {[%clk 00:15:36]} {[%emt 00:00:01]} Re8 {[%clk
00:15:30]} {[%emt 00:00:02]} 9. Qc2 {[%clk 00:15:40]} h5 {[%clk 00:15:34]}
{[%emt 00:00:02]} 10. O-O {[%clk 00:15:43]} {[%emt 00:00:01]} h4 {[%clk
00:15:37]} {[%emt 00:00:02]} 11. Bf4 {[%clk 00:15:46]} {[%emt 00:00:01]} Na6
{[%clk 00:15:12]} {[%emt 00:00:31]} 12. Rfe1 {[%clk 00:15:49]} {[%emt
00:00:02]} Nc7 {[%clk 00:15:08]} {[%emt 00:00:09]} 13. h3 {[%clk 00:15:52]}
{[%emt 00:00:02]} Nd5 {[%clk 00:14:46]} {[%emt 00:00:28]} 14. Bxd6 {[%clk
00:15:55]} {[%emt 00:00:01]} Qxd6 {[%clk 00:14:49]} {[%emt 00:00:02]} 15. Qd2
{[%clk 00:15:59]} Bd7 {[%clk 00:14:07]} {[%emt 00:00:47]} 16. c4 {[%clk
00:16:01]} {[%emt 00:00:02]} Ne7 {[%clk 00:13:42]} {[%emt 00:00:31]} 17. Nc3
{[%clk 00:15:29]} {[%emt 00:00:37]} Ng6 {[%clk 00:12:59]} {[%emt 00:00:47]} 18.
Bxg6 {[%clk 00:14:40]} {[%emt 00:00:55]} fxg6 {[%clk 00:13:03]} {[%emt
00:00:01]} 19. c5 {[%clk 00:14:40]} {[%emt 00:00:05]} Qc7 {[%clk 00:12:03]}
{[%emt 00:01:05]} 20. Ne4 {[%clk 00:14:21]} {[%emt 00:00:23]} Be6 {[%clk
00:10:47]} {[%emt 00:01:22]} 21. Nd6 {[%clk 00:14:02]} {[%emt 00:00:24]} Re7
{[%clk 00:10:50]} {[%emt 00:00:02]} 22. Re4 {[%clk 00:13:49]} {[%emt 00:00:17]}
Bd5 {[%clk 00:10:04]} {[%emt 00:00:52]} 23. Rxh4 {[%clk 00:13:14]} {[%emt
00:00:40]} b6 {[%clk 00:09:30]} {[%emt 00:00:39]} 24. Qd3 {[%clk 00:12:43]}
{[%emt 00:00:35]} f5 {[%clk 00:08:29]} {[%emt 00:01:07]} 25. Qg3 {[%clk
00:10:50]} {[%emt 00:01:58]} Bf7 {[%clk 00:07:58]} {[%emt 00:00:36]} 26. Rf4
{[%clk 00:09:37]} {[%emt 00:01:17]} Re2 {[%clk 00:07:05]} {[%emt 00:00:59]} 27.
Rf3 {[%clk 00:09:01]} {[%emt 00:00:41]} Rxb2 {[%clk 00:06:40]} {[%emt
00:00:30]} 28. Re3 {[%clk 00:09:04]} {[%emt 00:00:02]} bxc5 {[%clk 00:06:25]}
{[%emt 00:00:21]} 29. dxc5 {[%clk 00:08:51]} {[%emt 00:00:17]} Rc2 {[%clk
00:05:59]} {[%emt 00:00:30]} 30. Rae1 {[%clk 00:08:46]} {[%emt 00:00:11]} Rf8
{[%clk 00:05:30]} {[%emt 00:00:35]} 31. Re7 {[%clk 00:08:47]} {[%emt 00:00:03]}
Qb8 {[%clk 00:05:04]} {[%emt 00:00:31]} 32. Rxf7 {[%clk 00:08:46]} {[%emt
00:00:07]} Rxf7 {[%clk 00:05:05]} {[%emt 00:00:04]} 33. Re8+ {[%clk 00:08:49]}
{[%emt 00:00:02]} Qxe8 {[%clk 00:04:59]} {[%emt 00:00:11]} 34. Nxe8 {[%clk
00:08:52]} {[%emt 00:00:02]} Rxc5 {[%clk 00:04:39]} {[%emt 00:00:25]} 35. Qxg6
{[%clk 00:08:49]} {[%emt 00:00:07]} Re5 {[%clk 00:04:36]} {[%emt 00:00:09]} 36.
Qxc6 {[%clk 00:08:42]} {[%emt 00:00:12]} Rfe7 {[%clk 00:04:29]} {[%emt
00:00:12]} 37. Nd6 {[%clk 00:08:44]} {[%emt 00:00:03]} Re1+ {[%clk 00:04:31]}
{[%emt 00:00:03]} 38. Kh2 {[%clk 00:08:48]} R1e2 {[%clk 00:04:34]} {[%emt
00:00:03]} 39. Nxf5 {[%clk 00:08:50]} {[%emt 00:00:02]} 1-0

[Event "Kvibergspelen 2022"]
[Site "Kviberg Park Hotel & Conference, Krutvagen 2, Gothenburg, Sweden"]
[Date "2022.09.30"]
[Round "4.3"]
[White "Hector, Jonny"]
[Black "Johannsson, Birkir Isak"]
[Result "1-0"]
[TimeControl "15 minutes + 5 seconds per move from move one (Round 1 - 4) / 90 minutes + 30 seconds per move from move one (Round 5 - 8)"]
[WhiteTitle "GM"]
[WhiteFideId "1700090"]
[BlackFideId "2314673"]
[WhiteElo "2454"]
[BlackElo "2165"]

1. e4 {[%clk 00:15:06]} {[%emt 00:00:03]} c5 {[%clk 00:15:08]} {[%emt
00:00:04]} 2. Nf3 {[%clk 00:15:08]} {[%emt 00:00:02]} d6 {[%clk 00:15:11]}
{[%emt 00:00:02]} 3. d4 {[%clk 00:15:11]} {[%emt 00:00:02]} cxd4 {[%clk
00:15:13]} {[%emt 00:00:03]} 4. Nxd4 {[%clk 00:15:15]} {[%emt 00:00:01]} Nf6
{[%clk 00:15:16]} {[%emt 00:00:03]} 5. Nc3 {[%clk 00:15:18]} {[%emt 00:00:01]}
a6 {[%clk 00:15:20]} {[%emt 00:00:01]} 6. Bg5 {[%clk 00:15:20]} {[%emt
00:00:02]} Nbd7 {[%clk 00:15:18]} {[%emt 00:00:08]} 7. f4 {[%clk 00:15:20]}
{[%emt 00:00:05]} Qc7 {[%clk 00:15:19]} {[%emt 00:00:05]} 8. Qf3 {[%clk
00:15:20]} {[%emt 00:00:04]} h6 {[%clk 00:15:20]} {[%emt 00:00:05]} 9. Bxf6
{[%clk 00:15:20]} {[%emt 00:00:04]} Nxf6 {[%clk 00:15:21]} {[%emt 00:00:04]} 10.
f5 {[%clk 00:15:18]} {[%emt 00:00:06]} Qc5 {[%clk 00:15:20]} {[%emt 00:00:07]}
11. Nb3 {[%clk 00:15:17]} {[%emt 00:00:06]} Qe5 {[%clk 00:14:31]} {[%emt
00:00:53]} 12. Nd2 {[%clk 00:15:19]} {[%emt 00:00:04]} Bd7 {[%clk 00:12:29]}
{[%emt 00:02:08]} 13. Nc4 {[%clk 00:13:32]} {[%emt 00:01:51]} Qc5 {[%clk
00:12:03]} {[%emt 00:00:31]} 14. O-O-O {[%clk 00:12:42]} {[%emt 00:00:56]} Rc8
{[%clk 00:11:48]} {[%emt 00:00:19]} 15. e5 {[%clk 00:12:19]} {[%emt 00:00:27]}
Bc6 {[%clk 00:11:15]} {[%emt 00:00:39]} 16. Qe2 {[%clk 00:12:00]} {[%emt
00:00:24]} dxe5 {[%clk 00:10:25]} {[%emt 00:00:56]} 17. Qxe5 {[%clk 00:11:36]}
{[%emt 00:00:28]} Qxe5 {[%clk 00:10:13]} {[%emt 00:00:17]} 18. Nxe5 {[%clk
00:11:39]} {[%emt 00:00:01]} Ne4 {[%clk 00:08:42]} {[%emt 00:01:38]} 19. Nxe4
{[%clk 00:10:54]} {[%emt 00:00:49]} Bxe4 {[%clk 00:08:44]} {[%emt 00:00:03]} 20.
Bc4 {[%clk 00:10:42]} {[%emt 00:00:16]} e6 {[%clk 00:07:13]} {[%emt 00:01:38]}
21. fxe6 {[%clk 00:10:19]} {[%emt 00:00:28]} fxe6 {[%clk 00:07:15]} {[%emt
00:00:02]} 22. Rhe1 {[%clk 00:09:39]} {[%emt 00:00:45]} Bh7 {[%clk 00:07:19]}
{[%emt 00:00:02]} 23. Re2 {[%clk 00:09:05]} {[%emt 00:00:38]} Be7 {[%clk
00:05:54]} {[%emt 00:01:30]} 24. Bxe6 {[%clk 00:09:00]} {[%emt 00:00:09]} Rc7
{[%clk 00:05:02]} {[%emt 00:00:58]} 25. Bf7+ {[%clk 00:08:29]} {[%emt
00:00:35]} Kf8 {[%clk 00:04:57]} {[%emt 00:00:09]} 26. Bb3 {[%clk 00:08:26]}
{[%emt 00:00:10]} Bg5+ {[%clk 00:04:15]} {[%emt 00:00:48]} 27. Kb1 {[%clk
00:08:29]} {[%emt 00:00:01]} 1-0

[Event "Kvibergspelen 2022"]
[Site "Kviberg Park Hotel & Conference, Krutvagen 2, Gothenburg, Sweden"]
[Date "2022.09.30"]
[Round "4.4"]
[White "Johannesson, Oliver"]
[Black "Stefansson, Vignir Vatnar"]
[Result "0-1"]
[TimeControl "15 minutes + 5 seconds per move from move one (Round 1 - 4) / 90 minutes + 30 seconds per move from move one (Round 5 - 8)"]
[WhiteTitle "FM"]
[BlackTitle "IM"]
[WhiteFideId "2305623"]
[BlackFideId "2308649"]
[WhiteElo "2205"]
[BlackElo "2452"]

1. d4 {[%clk 00:14:59]} {[%emt 00:00:11]} Nf6 {[%clk 00:15:07]} {[%emt
00:00:03]} 2. c4 {[%clk 00:14:52]} {[%emt 00:00:12]} e6 {[%clk 00:15:09]}
{[%emt 00:00:02]} 3. Nf3 {[%clk 00:14:52]} {[%emt 00:00:05]} d5 {[%clk
00:15:13]} {[%emt 00:00:02]} 4. g3 {[%clk 00:14:37]} {[%emt 00:00:19]} dxc4
{[%clk 00:15:17]} {[%emt 00:00:02]} 5. Qa4+ {[%clk 00:14:27]} {[%emt 00:00:15]}
Nbd7 {[%clk 00:15:20]} {[%emt 00:00:01]} 6. Qxc4 {[%clk 00:14:20]} {[%emt
00:00:13]} a6 {[%clk 00:15:24]} 7. Bg2 {[%clk 00:14:20]} {[%emt 00:00:05]} b5
{[%clk 00:15:28]} 8. Qc2 {[%clk 00:13:53]} {[%emt 00:00:32]} Bb7 {[%clk
00:15:31]} {[%emt 00:00:02]} 9. O-O {[%clk 00:13:55]} {[%emt 00:00:03]} c5
{[%clk 00:15:35]} {[%emt 00:00:01]} 10. Rd1 {[%clk 00:12:40]} {[%emt 00:01:20]}
Rc8 {[%clk 00:15:38]} {[%emt 00:00:02]} 11. Qd3 {[%clk 00:09:48]} {[%emt
00:02:57]} cxd4 {[%clk 00:15:07]} {[%emt 00:00:37]} 12. Nxd4 {[%clk 00:08:19]}
{[%emt 00:01:33]} Bxg2 {[%clk 00:15:09]} {[%emt 00:00:03]} 13. Kxg2 {[%clk
00:08:23]} {[%emt 00:00:01]} Nc5 {[%clk 00:11:45]} {[%emt 00:03:29]} 14. Qe3
{[%clk 00:07:31]} {[%emt 00:00:55]} Qb6 {[%clk 00:09:41]} {[%emt 00:02:10]} 15.
Nd2 {[%clk 00:06:47]} {[%emt 00:00:49]} Be7 {[%clk 00:09:19]} {[%emt 00:00:27]}
16. N2f3 {[%clk 00:06:36]} {[%emt 00:00:16]} Nd5 {[%clk 00:09:18]} {[%emt
00:00:07]} 17. Qd2 {[%clk 00:06:02]} {[%emt 00:00:39]} O-O {[%clk 00:09:07]}
{[%emt 00:00:14]} 18. Qe1 {[%clk 00:05:14]} {[%emt 00:00:55]} Ne4 {[%clk
00:08:45]} {[%emt 00:00:27]} 19. Bd2 {[%clk 00:04:27]} {[%emt 00:00:52]} Bf6
{[%clk 00:08:24]} {[%emt 00:00:26]} 20. Ba5 {[%clk 00:04:20]} {[%emt 00:00:12]}
Qb7 {[%clk 00:08:27]} {[%emt 00:00:02]} 21. Kg1 {[%clk 00:04:07]} {[%emt
00:00:17]} b4 {[%clk 00:07:43]} {[%emt 00:00:49]} 22. a3 {[%clk 00:03:49]}
{[%emt 00:00:24]} b3 {[%clk 00:07:41]} {[%emt 00:00:07]} 23. Bb4 {[%clk
00:03:32]} {[%emt 00:00:22]} Rfd8 {[%clk 00:07:22]} {[%emt 00:00:24]} 24. Nxb3
{[%clk 00:03:07]} {[%emt 00:00:30]} Bxb2 {[%clk 00:07:16]} {[%emt 00:00:10]} 25.
Rab1 {[%clk 00:03:04]} {[%emt 00:00:07]} Bc3 {[%clk 00:07:19]} {[%emt
00:00:03]} 26. Bxc3 {[%clk 00:00:14]} {[%emt 00:02:56]} Nexc3 {[%clk 00:07:22]}
{[%emt 00:00:01]} 27. Nbd4 {[%clk 00:00:07]} {[%emt 00:00:12]} Nxb1 {[%clk
00:07:20]} {[%emt 00:00:06]} 28. Rxb1 {[%clk 00:00:11]} Qc7 {[%clk 00:07:18]}
{[%emt 00:00:07]} 29. Kg2 {[%clk 00:00:15]} {[%emt 00:00:02]} Qc3 {[%clk
00:07:15]} {[%emt 00:00:08]} 30. Qf1 {[%clk 00:00:07]} {[%emt 00:00:13]} Qxa3
{[%clk 00:07:16]} {[%emt 00:00:04]} 31. Ra1 {[%clk 00:00:11]} Qc5 {[%emt
00:00:16]} 32. Rxa6 {[%clk 00:00:09]} Nb4 {[%clk 00:07:15]} 33. Ra1 {[%clk
00:00:07]} {[%emt 00:00:08]} Rxd4 {[%clk 00:07:04]} {[%emt 00:00:16]} 34. Nxd4
{[%clk 00:00:09]} {[%emt 00:00:04]} Qxd4 {[%clk 00:07:08]} 35. Qc1 {[%clk
00:00:10]} {[%emt 00:00:04]} Qd5+ {[%clk 00:07:12]} 0-1